Cogmind - Beta 16.1 --- EXPLORER MODE // 2026.03.10 @ 14:54:30 Player: Genju Result: Destroyed by G-67 Veteran with Plasma Rifle Performance ------------- Evolutions (5) 2500 Regions Visited (10) 2000 Robots Destroyed (130) 650 Value Destroyed (4007) 4007 Prototype IDs (23) 460 Alien Tech Used (0) 0 Bonus (904) 904 TOTAL SCORE: 10521 Bonus ------- Follower Combat Kills 104 Entered DSFs 500 Aligned with FarCom 300 Cogmind --------- Core Integrity 0/1000 Matter 300/300 Energy 100/100 System Corruption 1% Temperature Cool (0) Movement Core (200) Ox3 Location -5/Upper Caves Parts ------- > --- POWER (2) -------- (None) > --- PROPULSION (6) --- (None) > --- UTILITY (8) ------ Medium Storage Unit Improved Hacking Suite > --- WEAPON (2) ------- (None) > --- INVENTORY (10) --- Improved Deuterium Engine Advanced ECM Suite Relay Coupler [Sentry] (29) Relay Coupler [Behemoth] (14) Advanced Remote Datajack Peak State ------------ > --- POWER ------------ Neutrino Core Neutrino Core > --- PROPULSION ------- Gravmag Array Gravmag Array Gravmag Array > --- UTILITY ---------- Cryofiber Web Medium Storage Unit Visual Processing Unit Improved Transmission Jammer Improved Hacking Suite Improved Hacking Suite Improved Hacking Suite Advanced System Shield > --- WEAPON ----------- Gamma Rifle Heavy Plasma Cannon > --- INVENTORY -------- Improved Deuterium Engine Improved Deuterium Engine Advanced ECM Suite Relay Coupler [Sentry] Relay Coupler [Behemoth] AWS/Thermal Disruptor Cannon Disruptor Cannon Advanced Remote Datajack [Rating: 93] Favorites ----------- Power Micro Nuclear Core Engine Light Ion Engine Power Core Micro Nuclear Core Propulsion VSS Leg Leg VSS Leg Hover Unit Gravmag Array Utility Medium Storage Unit Device Sensor Array Storage Medium Storage Unit Processor Visual Processing Unit Hackware System Shield Weapon EM Pulse Gun Energy Gun EM Pulse Gun Energy Cannon Disruptor Cannon Ballistic Gun Gauss Rifle Launcher Missile Launcher Build | -11 -10 -10 -10 -9 -8 -7 -6 -6 -5 -5 ------- Run | Yrd Mat Min Exi Min Mat Fac Fac DSF Fac Upp Slots Evolved 11 | . 1 . . . 4 2 2 . 2 . Power 1 | . . . . . 1 . . . . . Propulsion 4 | . 1 . . . 1 . . . 2 . Utility 6 | . . . . . 2 2 2 . . . Weapon . | . . . . . . . . . . . Parts Attached 74 | 6 2 . . . 7 30 1 12 12 4 Power 15 | 1 . . . . 1 6 . 1 4 2 Engine 8 | 1 . . . . 1 3 . 1 2 . Core 7 | . . . . . . 3 . . 2 2 Reactor . | . . . . . . . . . . . Propulsion 18 | 2 1 . . . 4 5 . 4 2 . Treads . | . . . . . . . . . . . Leg 14 | 2 1 . . . 4 5 . 2 . . Wheel . | . . . . . . . . . . . Hover 4 | . . . . . . . . 2 2 . Flight . | . . . . . . . . . . . Utility 21 | 1 1 . . . 2 9 1 4 3 . Device 9 | . 1 . . . 1 4 1 1 1 . Storage 1 | 1 . . . . . . . . . . Processor 4 | . . . . . 1 2 . 1 . . Hackware 7 | . . . . . . 3 . 2 2 . Protection . | . . . . . . . . . . . Artifact . | . . . . . . . . . . . Weapon 20 | 2 . . . . . 10 . 3 3 2 Energy Gun 10 | 2 . . . . . 5 . 1 1 1 Energy Cannon 5 | . . . . . . . . 2 2 1 Ballistic Gun 1 | . . . . . . 1 . . . . Ballistic Cannon . | . . . . . . . . . . . Launcher 4 | . . . . . . 4 . . . . Special Weapon . | . . . . . . . . . . . Impact Weapon . | . . . . . . . . . . . Slashing Weapon . | . . . . . . . . . . . Piercing Weapon . | . . . . . . . . . . . Special Melee Weapon . | . . . . . . . . . . . Unidentified Prototypes . | . . . . . . . . . . . Parts Lost 29 | . . . . . . 7 . 3 5 14 Power 11 | . . . . . . 4 . 2 1 4 Propulsion 6 | . . . . . . 2 . 1 2 1 Utility 8 | . . . . . . 1 . . 2 5 Weapon 4 | . . . . . . . . . . 4 Highest Loss Streak 11 | . . . . . . 3 . 2 2 11 To Critical Strikes . | . . . . . . . . . . . Average Backups 7 | 4 9 7 7 8 7 8 8 7 7 5 Power . | . 1 1 1 1 . . . . . 1 Propulsion . | . 2 . . . . . 1 . . . Utility 2 | 2 4 4 4 4 3 1 1 1 2 3 Weapon 3 | . 1 2 2 3 3 4 5 4 3 . Tool/Special . | . . . . . . . . . . . Unused Backups 15 | . 3 . . . 4 2 . 3 . 3 Power . | . . . . . . . . . . . Propulsion 2 | . 2 . . . . . . . . . Utility 5 | . . . . . 2 1 . . . 2 Weapon 5 | . 1 . . . 2 . . 2 . . Tool/Special 3 | . . . . . . 1 . 1 . 1 Average Slot Usage (%) 91 | . 86 100 100 100 99 98 93 90 80 29 Engine 9 | . 12 12 12 12 16 6 . 5 6 . Core 3 | . . . . . . 7 12 5 2 3 Leg 24 | . 27 37 37 37 32 27 25 13 . . Hover 2 | . . . . . . . . 4 15 . Device 10 | . 9 12 12 12 15 8 12 12 10 1 Storage 7 | . 12 12 12 12 8 7 6 6 5 5 Processor 6 | . . . . . 7 9 6 8 5 4 Hackware 10 | . . . . . . 15 18 21 21 10 Energy Gun 10 | . 24 25 25 25 15 5 . 1 . . Energy Cannon 1 | . . . . . . . . 5 9 1 Ballistic Gun 2 | . . . . . . 4 6 3 . . Launcher 1 | . . . . . . 3 6 2 . . Peak Build Rating 93 | 6 9 8 10 10 23 51 54 72 93 67 Average Rating 37 | 4 7 8 8 10 18 46 54 64 82 22 On Entrance 27 | . 6 8 8 10 10 23 50 54 68 67 Avg Prop Armor Cover (%) 6 | . . . . . . 6 . . . . Naked Turns . | . . . . . . . . . . . Heaviest Build 56 | 17 18 18 18 18 24 38 37 45 56 55 Greatest Support 66 | 20 30 30 30 30 54 63 63 66 60 20 Greatest Overweight (x) 14 | . 1 . . . . 1 . 14 2 10 Average Overweight (x) . | . . . . . . . . . . 3 Largest Inventory Capacity 10 | 10 10 10 10 10 10 10 10 10 10 10 Average Capacity 9 | 8 10 10 10 10 10 10 10 10 10 10 Most Carried 10 | 8 10 7 9 9 10 10 9 10 10 10 Average Carried 8 | 4 9 7 7 9 8 9 9 9 9 5 Final Capacity 10 | 10 10 10 10 10 10 10 10 10 10 10 Final Carried 10 | 8 7 7 9 9 10 10 9 10 10 5 Class Distribution -------------------- 57% | Hacker-Mutant 27% | Hacker-Skirmisher 14% | Wizard-Mutant Dominant Class ---------------- Hacker-Mutant | -10/Materials Hacker-Mutant | -10/Mines Hacker-Mutant | -10/Exiles Hacker-Skirmisher | -9/Mines Hacker-Skirmisher | -8/Materials Hacker-Mutant | -7/Factory Hacker-Mutant | -6/Factory Wizard-Mutant | -6/DSF Wizard-Mutant | -5/Factory Hacker-Mutant | -5/Upper Caves Resources | -11 -10 -10 -10 -9 -8 -7 -6 -6 -5 -5 ----------- Run | Yrd Mat Min Exi Min Mat Fac Fac DSF Fac Upp Matter Collected 2380 | 229 111 10 . . 90 1336 . 314 250 40 Remotely . | . . . . . . . . . . . Salvage Created 4195 | . 434 . . . 462 2088 . 314 632 265 Parts 250 | . 20 . . . 33 134 . 14 34 15 Haulers Intercepted 1 | . 1 . . . . . . . . . Recyclers Shooed 6 | . . . . . 1 5 . . . . Parts Field Recycled . | . . . . . . . . . . . Retrieved Matter . | . . . . . . . . . . . Parts Self-Destructed . | . . . . . . . . . . . Prevented . | . . . . . . . . . . . Parts Restored . | . . . . . . . . . . . Kills | -11 -10 -10 -10 -9 -8 -7 -6 -6 -5 -5 ------- Run | Yrd Mat Min Exi Min Mat Fac Fac DSF Fac Upp Combat Hostiles Destroyed 76 | . 7 . . . 10 38 . 4 12 5 Guns 38 | . 3 . . . 10 17 . 1 2 5 Cannons 12 | . . . . . . . . 2 10 . AOE 26 | . 4 . . . . 21 . 1 . . Classes Destroyed 14 | . 3 . . . 4 6 . 1 . . Worker 16 | . . . . . . 15 . . 1 . Builder 12 | . . . . . . 12 . . . . Tunneler 2 | . . . . . . 2 . . . . Hauler 1 | . 1 . . . . . . . . . Recycler 4 | . . . . . 1 3 . . . . Operator 3 | . . . . . 1 2 . . . . Watcher 16 | . 3 . . . 5 7 . . 1 . Swarmer 21 | . . . . . 8 4 . 2 5 2 Grunt 30 | . 7 . . . . 17 . . 4 2 Duelist 1 | . . . . . . 1 . . . . Sentry 8 | . . . . . 2 5 . . . 1 Hunter 6 | . . . . . . 4 . 1 1 . Programmer 9 | . . . . . . 7 . . 2 . Heavy 1 | . . . . . . . . 1 . . Best Kill Streak 12 | . 3 . . . 4 12 . 2 6 5 Combat Bots Only 6 | . 2 . . . 3 5 . 2 6 5 Max Kills in Single Turn 4 | . 2 . . . 2 4 . 1 1 1 Gunslinging 1 | . . . . . 1 . . . . . Exploded 3 | . 1 . . . . 3 . 1 . . Melee . | . . . . . . . . . . . Uniques/NPCs Destroyed . | . . . . . . . . . . . Combat | -11 -10 -10 -10 -9 -8 -7 -6 -6 -5 -5 -------- Run | Yrd Mat Min Exi Min Mat Fac Fac DSF Fac Upp Hostile Shots Fired 660 | . 10 . . . 23 332 . 64 124 107 Missed 241 | . 3 . . . 6 139 . 18 47 28 Hits 419 | . 7 . . . 17 193 . 46 77 79 Melee 4 | . . . . . . 3 . . 1 . Projectile 415 | . 7 . . . 17 190 . 46 76 79 Critical Strikes 15 | . 1 . . . 1 4 . . 5 4 Part Disruptions 3 | . . . . . 1 2 . . . . Damage Taken 4904 | . 56 . . . 114 1683 . 535 1557 959 Core 1278 | . 18 . . . 20 184 . 51 703 302 Absorbed by Shields . | . . . . . . . . . . . Ignored by Resistances 2584 | . 35 . . . 78 1052 . 318 545 556 Regen/Repaired (Parts) 269 | . . . . . 37 168 . . 64 . Core Remaining (%) 91 | 100 . . . 92 96 73 . 94 . . Volleys Fired 241 | . 19 . . . 21 147 . 16 29 9 Largest 2 | . 2 . . . 2 2 . 2 2 2 Hottest 171 | . 80 . . . 80 110 . 162 171 165 Shots Fired 441 | . 38 . . . 42 255 . 30 58 18 Gun 330 | . 38 . . . 42 208 . 18 15 9 Cannon 58 | . . . . . . . . 6 43 9 Launcher 53 | . . . . . . 47 . 6 . . Special . | . . . . . . . . . . . Kinetic 121 | . . . . . . 108 . 13 . . Thermal 38 | . . . . . . . . . 29 9 Explosive 43 | . . . . . . 43 . . . . Electromagnetic 239 | . 38 . . . 42 104 . 17 29 9 Robot Hit Streak 37 | . 13 . . . 9 30 . 37 15 23 Robot Miss Streak 5 | . 5 . . . 1 2 . 1 3 . Penetration Max 1 | . . . . . . 1 . . . . Secondary Targets 3 | . 1 . . . 2 . . . . . Max Gunslinging Chain 1 | . 1 . . . 1 . . . . . Autonomous 3 | . . . . . . . . . . 3 Shots Hit Robots 350 | . 25 . . . 32 210 . 28 37 18 Core Hits 232 | . 18 . . . 22 152 . 14 17 9 Critical Kills 2 | . . . . . . 1 . 1 . . Critical Parts Destroyed 1 | . . . . . . 1 . . . . Critical Strikes 4 | . . . . . . 3 . 1 . . Destroy 3 | . . . . . . 2 . 1 . . Corrupt 1 | . . . . . . 1 . . . . Melee Attacks . | . . . . . . . . . . . Impact . | . . . . . . . . . . . Slashing . | . . . . . . . . . . . Piercing . | . . . . . . . . . . . Sneak Attacks . | . . . . . . . . . . . Combat Hostiles . | . . . . . . . . . . . Follow-up Attacks . | . . . . . . . . . . . Damage Inflicted 10962 | . 614 . . . 653 7316 . 748 1128 503 Guns 4098 | . 411 . . . 470 2562 . 276 129 250 Cannons 1292 | . . . . . . . . 99 940 253 Explosions 5553 | . 203 . . . 183 4735 . 373 59 . Melee . | . . . . . . . . . . . Ramming 19 | . . . . . . 19 . . . . Kinetic 1956 | . . . . . . 1774 . 182 . . Thermal 2166 | . 203 . . . 183 700 . . 798 282 Explosive 3944 | . . . . . . 3944 . . . . Electromagnetic 2877 | . 411 . . . 470 879 . 566 330 221 Impact . | . . . . . . . . . . . Slashing . | . . . . . . . . . . . Piercing . | . . . . . . . . . . . Highest Corruption 4 | . . . . . . 4 . . 1 1 Average Corruption 1 | . . . . . . 1 . . 1 1 Corruption Purged 6 | . . . . . . 6 . . . . Corruption Blocked . | . . . . . . . . . . . Effects 27 | . . . . . . 24 . . 2 1 Message Errors 5 | . . . . . . 5 . . . . Matter Fused 8 | . . . . . . 7 . . 1 . Energy Discharges 6 | . . . . . . 6 . . . . Data Loss (minor) 2 | . . . . . . 2 . . . . Data Loss (major) 3 | . . . . . . 2 . . 1 . Misfires 1 | . . . . . . 1 . . . . Alerts 1 | . . . . . . . . . . 1 Weapon Failures 1 | . . . . . . 1 . . . . Overload Shots . | . . . . . . . . . . . Overflow Damage 342 | . . . . . 5 316 . . 21 . Projectiles 2 | . . . . . . . . . 2 . Explosions 340 | . . . . . 5 316 . . 19 . Melee . | . . . . . . . . . . . Knockbacks . | . . . . . . . . . . . Impact . | . . . . . . . . . . . Kinetic . | . . . . . . . . . . . Secondary . | . . . . . . . . . . . Self-Inflicted Damage 124 | . . . . . . 82 . . 42 . Shots 4 | . . . . . . 3 . . 1 . Rammed . | . . . . . . . . . . . Targets Rammed 1 | . . . . . . 1 . . . . Kicked 1 | . . . . . . 1 . . . . Crushed . | . . . . . . . . . . . Highest Temperature 861 | . 117 . . . 45 444 . . 861 465 Average Temperature 127 | . 37 . . . 15 81 . . 289 196 Received Heat Transfer 1386 | . 72 . . . 36 561 . . 90 627 Effects 40 | . . . . . . 7 . . 31 2 Shutdowns 5 | . . . . . . 4 . . 1 . Energy Bleed 4 | . . . . . . 1 . . 3 . Interference 8 | . . . . . . . . . 8 . Matter Decay 4 | . . . . . . 1 . . 3 . Short Circuit 5 | . . . . . . 1 . . 2 2 Damage (minor) 1 | . . . . . . . . . 1 . Damage (major) 9 | . . . . . . . . . 9 . Damage (core) 4 | . . . . . . . . . 4 . Siege Activations . | . . . . . . . . . . . Martial Activations . | . . . . . . . . . . . Shielding Activations . | . . . . . . . . . . . Robots Disrupted 2 | . . . . . . 1 . 1 . . Combat Hostiles 2 | . . . . . . 1 . 1 . . Robots Corrupted 1 | . . . . . . . . 1 . . Combat Hostiles . | . . . . . . . . . . . Parts Fried 13 | . 1 . . . 2 3 . 6 1 . Impact Corruptions . | . . . . . . . . . . . Robots Melted . | . . . . . . . . . . . Combat Hostiles . | . . . . . . . . . . . Parts Melted 3 | . . . . . . 3 . . . . Heat Transferred 2411 | . 250 . . . 150 450 . . 1150 411 Parts Sabotaged . | . . . . . . . . . . . Parts Stolen . | . . . . . . . . . . . Parts Stripped . | . . . . . . . . . . . Power Chain Reactions 12 | . 4 . . . 3 5 . . . . Alert | -11 -10 -10 -10 -9 -8 -7 -6 -6 -5 -5 ------- Run | Yrd Mat Min Exi Min Mat Fac Fac DSF Fac Upp Maximum Alert Level 1 | . . . . . . 1 . . . . Low Security (%) 95 | 100 100 100 . 100 100 90 100 100 100 . Level 1 4 | . . . . . . 9 . . . . Level 2 . | . . . . . . . . . . . Level 3 . | . . . . . . . . . . . Level 4 . | . . . . . . . . . . . Level 5 . | . . . . . . . . . . . High Security . | . . . . . . . . . . . Max Security . | . . . . . . . . . . . Peak Influence 348 | . 70 . . . 100 348 . 95 165 . Initial 36 | . . . . . . . . . 36 . Average 33 | . 10 . . . 9 52 . 42 39 . Influence Increases 3351 | . 273 . . . 449 1725 . 105 654 145 Destroy 0b10 Robot/C 1560 | . 140 . . . 200 760 . 80 280 100 Destroy 0b10 Robot/NC 280 | . 20 . . . 40 205 . 5 10 . Destroy Leader 394 | . 38 . . . 60 234 . 20 42 . Allied During Kill 2 | . . . . . . . . . 2 . Successful Hack 211 | . 38 . . . 79 84 . . 10 . Disable Machine 80 | . . . . . . 60 . . 20 . Destroy Structure 389 | . 7 . . . 10 292 . . 80 . Partial Spotted 45 | . . . . . 30 . . . 15 . Lose Combat Pursuer 390 | . 30 . . . 30 90 . . 195 45 Influence Decreases 3351 | . 273 . . . 449 1725 . 10 719 175 Entered New Map 75 | . . . . . . . . . 59 16 Time Decay 2960 | . 273 . . . 449 1586 . . 563 89 Lost Part 170 | . . . . . . 40 . 10 50 70 Lost Ally 20 | . . . . . . . . . 20 . Purge Threat 126 | . . . . . . 99 . . 27 . Squads Dispatched 23 | . . . . . . 19 . 1 3 . Investigation 5 | . . . . . . 4 . . 1 . Extermination 10 | . . . . . . 8 . . 2 . Reinforcement 4 | . . . . . . 3 . 1 . . Assault 1 | . . . . . . 1 . . . . Garrison 3 | . . . . . . 3 . . . . Intercept . | . . . . . . . . . . . Searches Triggered . | . . . . . . . . . . . Construction Impeded 2 | . . . . . . 2 . . . . Haulers Reinforced . | . . . . . . . . . . . Active Scanning Responses . | . . . . . . . . . . . Cargo Convoy Interrupts . | . . . . . . . . . . . Stealth | -11 -10 -10 -10 -9 -8 -7 -6 -6 -5 -5 --------- Run | Yrd Mat Min Exi Min Mat Fac Fac DSF Fac Upp Distress Signals 7 | . 2 . . . 2 1 . . 2 . Communications Jammed 86 | . . . . . . 54 . . 32 . Distress Signals 74 | . . . . . . 53 . . 21 . Times Spotted 154 | . 16 . . . 21 58 . 8 37 14 Peak Tracking Total 7 | . 3 . . . 4 6 . 4 7 7 Tactical Retreats 16 | . 1 . . . 2 3 . . 8 2 Traps | -11 -10 -10 -10 -9 -8 -7 -6 -6 -5 -5 ------- Run | Yrd Mat Min Exi Min Mat Fac Fac DSF Fac Upp Traps Triggered 15 | . 3 . . . . 6 . 5 1 . Indirectly 4 | . . . . . . . . 4 . . Trap Hack Attempts . | . . . . . . . . . . . Triggered . | . . . . . . . . . . . Disarmed . | . . . . . . . . . . . Reprogrammed . | . . . . . . . . . . . Reused . | . . . . . . . . . . . Traps Extracted . | . . . . . . . . . . . Installed . | . . . . . . . . . . . Triggered . | . . . . . . . . . . . Machines | -11 -10 -10 -10 -9 -8 -7 -6 -6 -5 -5 ---------- Run | Yrd Mat Min Exi Min Mat Fac Fac DSF Fac Upp Machines Disabled 20 | . . . . . . 15 . . 5 . Max in Single Turn 3 | . . . . . . 3 . . 2 . Garrison Access 1 | . . . . . . 1 . . . . Machines Repaired . | . . . . . . . . . . . Machines Dismantled . | . . . . . . . . . . . Machines Sabotaged . | . . . . . . . . . . . Overloaded Fab Kills . | . . . . . . . . . . . Hacking | -11 -10 -10 -10 -9 -8 -7 -6 -6 -5 -5 --------- Run | Yrd Mat Min Exi Min Mat Fac Fac DSF Fac Upp Machines Accessed 55 | . 10 . 1 . 12 25 1 . 5 1 Terminals 32 | . 8 . . . 9 12 1 . 1 1 Fabricators 2 | . . . . . . 1 . . 1 . Repair Stations 5 | . . . . . 1 3 . . 1 . Recycling Units 8 | . 2 . . . . 5 . . 1 . Scanalyzers 4 | . . . . . 1 3 . . . . Garrison Access 3 | . . . . . 1 1 . . 1 . Total Hacks 172 | . 30 . 1 . 40 82 1 . 14 4 Successful 115 | . 20 . 1 . 30 48 1 . 11 4 Failed 57 | . 10 . . . 10 34 . . 3 . Catastrophic 4 | . 1 . . . 1 1 . . 1 . Database Lockouts . | . . . . . . . . . . . Manual 113 | . 25 . 1 . 33 48 . . 6 . Terminals 108 | . 25 . . . 32 42 1 . 4 4 Fabricators 5 | . . . . . . 2 . . 3 . Repair Stations 15 | . . . . . 2 10 . . 3 . Recycling Units 17 | . 5 . . . . 10 . . 2 . Scanalyzers 20 | . . . . . 4 16 . . . . Garrison Access 6 | . . . . . 2 2 . . 2 . Terminal Hacks 46 | . 10 . 1 . 14 15 1 . 1 4 Record 4 | . . . . . . . . . . 4 Part Schematic 34 | . 9 . . . 14 11 . . . . Robot Analysis 1 | . 1 . . . . . . . . . Open DSF 4 | . . . . . . 3 1 . . . Unreport Threat 2 | . . . . . . 1 . . 1 . Proto ID Catalog 1 | . . . 1 . . . . . . . Fabricator Hacks 5 | . . . . . . 2 . . 3 . Load Schematic 2 | . . . . . . 1 . . 1 . Build 3 | . . . . . . 1 . . 2 . Repair Station Hacks 8 | . . . . . 2 4 . . 2 . Scan Component 4 | . . . . . 1 2 . . 1 . Repair 4 | . . . . . 1 2 . . 1 . Recycling Unit Hacks 4 | . 1 . . . . 2 . . 1 . Retrieve Components 4 | . 1 . . . . 2 . . 1 . Scanalyzer 18 | . . . . . 4 14 . . . . Insert Component 2 | . . . . . . 2 . . . . Analyze 2 | . . . . . . 2 . . . . Retrieve Study 14 | . . . . . 4 10 . . . . Garrison Access Hacks 2 | . . . . . 1 . . . 1 . Unlock Access 2 | . . . . . 1 . . . 1 . Unauthorized Hacks 32 | . 9 . . . 9 11 . . 3 . Terminals 21 | . 7 . . . 8 5 . . 1 . Assimilate 3 | . . . . . 2 1 . . . . Botnet 18 | . 7 . . . 6 4 . . 1 . Fabricators . | . . . . . . . . . . . Repair Stations . | . . . . . . . . . . . Recycling Units 8 | . 2 . . . . 5 . . 1 . Reject 8 | . 2 . . . . 5 . . 1 . Scanalyzers . | . . . . . . . . . . . Garrison Access 3 | . . . . . 1 1 . . 1 . Reprogram 3 | . . . . . 1 1 . . 1 . Data Cores Recovered 2 | . . . . . 1 1 . . . . Used . | . . . . . . . . . . . Hacking Detections 45 | . 10 . . . 12 20 . . 3 . Full Trace Events 3 | . . . . . . 3 . . . . Feedback Events 1 | . . . . . . 1 . . . . Corruption 1 | . . . . . . 1 . . . . Feedback Blocked . | . . . . . . . . . . . Robot Schematics Acquired . | . . . . . . . . . . . Robots Built . | . . . . . . . . . . . Authchips . | . . . . . . . . . . . Time . | . . . . . . . . . . . Total Robot Build Rating . | . . . . . . . . . . . Part Schematics Acquired 35 | . 9 . . . 14 12 . . . . Parts Built 6 | . . . . . . 2 . . 4 . Authchips . | . . . . . . . . . . . Time 285 | . . . . . . 84 . . 201 . Total Part Build Rating 30 | . . . . . . 8 . . 22 . Part Studies Acquired 14 | . . . . . 4 10 . . . . Parts Repaired 4 | . . . . . 1 2 . . 1 . Time 90 | . . . . . 26 36 . . 28 . Parts Recycled . | . . . . . . . . . . . Recycled Matter . | . . . . . . . . . . . Retrieved Matter . | . . . . . . . . . . . Retrieved Components 12 | . 9 . . . . 3 . . . . Parts Scanalyzed 2 | . . . . . . 2 . . . . Part Schematics Acquired 2 | . . . . . . 2 . . . . Parts Damaged . | . . . . . . . . . . . Bothacking | -11 -10 -10 -10 -9 -8 -7 -6 -6 -5 -5 ------------ Run | Yrd Mat Min Exi Min Mat Fac Fac DSF Fac Upp Used RIF Installer . | . . . . . . . . . . . Robots Hacked . | . . . . . . . . . . . Non-combat . | . . . . . . . . . . . Combat . | . . . . . . . . . . . Robot Hacks Applied . | . . . . . . . . . . . Relay Couplers Released 5 | . . . . . . 2 . . 3 . Machine Destruction 2 | . . . . . . 2 . . . . Programmers 3 | . . . . . . . . . 3 . Fabnet Peak Effective % . | . . . . . . . . . . . Robots Rewired . | . . . . . . . . . . . Allies Hacked . | . . . . . . . . . . . Hacks Repelled . | . . . . . . . . . . . Allies | -11 -10 -10 -10 -9 -8 -7 -6 -6 -5 -5 -------- Run | Yrd Mat Min Exi Min Mat Fac Fac DSF Fac Upp Total Allies 5 | . . 3 . . 1 . . . 1 . Largest Group 3 | . . 3 2 1 1 . . . 1 . Highest-Rated Group 83 | . . 40 24 16 16 . . . 83 . Highest-Rated Ally 83 | . . 16 16 16 16 . . . 83 . Total Orders . | . . . . . . . . . . . Ally Attacks 23 | . . . . . 3 . . . 20 . Total Damage 329 | . . . . . 35 . . . 294 . Kills 3 | . . . . . 1 . . . 2 . Allies Corrupted . | . . . . . . . . . . . Allies Melted . | . . . . . . . . . . . Intel | -11 -10 -10 -10 -9 -8 -7 -6 -6 -5 -5 ------- Run | Yrd Mat Min Exi Min Mat Fac Fac DSF Fac Upp Active Infowar (turns) 8783 | . 766 509 251 62 1807 3902 5 289 1149 43 Optics 5340 | . . . . . . 3887 5 289 1116 43 Sensors 4148 | . 766 509 251 62 1807 753 . . . . Terrain 1802 | . . . . . 1788 14 . . . . Jamming 4477 | . . . . . . 3091 5 289 1092 . Robot Analysis Total 1 | . 1 . . . . . . . . . Derelict Logs Recovered 1 | . . 1 . . . . . . . . Drone Launches . | . . . . . . . . . . . Drone Recoveries . | . . . . . . . . . . . Exploration | -11 -10 -10 -10 -9 -8 -7 -6 -6 -5 -5 ------------- Run | Yrd Mat Min Exi Min Mat Fac Fac DSF Fac Upp Turns Passed 9491 | 91 999 509 251 62 1807 3902 5 289 1177 399 Spaces Moved 6353 | 62 767 379 209 50 959 2560 5 217 991 154 Core 145 | 4 . . . . . . . 1 . 140 Treads . | . . . . . . . . . . . Legs 5093 | 58 767 379 209 50 959 2560 5 106 . . Wheels . | . . . . . . . . . . . Hover 1115 | . . . . . . . . 110 991 14 Flight . | . . . . . . . . . . . Fastest Speed 50 | 50 120 120 120 120 97 85 97 56 52 160 Average Speed 98 | 115 120 120 120 120 106 92 97 92 54 233 Slowest Speed 750 | 120 190 120 120 120 120 173 97 750 160 550 Overloaded Moves . | . . . . . . . . . . . Propulsion Burnouts . | . . . . . . . . . . . Robots Hopped . | . . . . . . . . . . . Potential Cave-ins . | . . . . . . . . . . . Cave-ins Triggered . | . . . . . . . . . . . Exploration Rate (%) 53 | 4 98 80 61 20 72 60 . 92 25 23 Regions Visited 10 Branch Regions 4 Pre-discovered Areas 1 | . . 1 . . . . . . . . Known Exits Taken 9 | 1 1 1 1 1 1 1 1 . 1 . Unknown Exits Taken . | . . . . . . . . . . . Scrap Searched 1 | . . 1 . . . . . . . . Spaces Dug . | . . . . . . . . . . . Terrain Destroyed 403 | . 7 . . . 9 349 . . 38 . Melee . | . . . . . . . . . . . Projectile 3 | . . . . . . . . . 3 . AOE 400 | . 7 . . . 9 349 . . 35 . Terrain Rammed . | . . . . . . . . . . . Walls Destroyed . | . . . . . . . . . . . Machines Disabled . | . . . . . . . . . . . Actions | -11 -10 -10 -10 -9 -8 -7 -6 -6 -5 -5 --------- Run | Yrd Mat Min Exi Min Mat Fac Fac DSF Fac Upp Total 9139 | 81 805 433 209 52 1706 3825 5 277 1568 178 Wait 2333 | . 3 55 . 3 699 1042 . 1 522 8 Move 6343 | 61 766 378 208 49 958 2559 4 216 990 154 Hop . | . . . . . . . . . . . Pick Up 75 | 14 5 . 1 . 11 20 . 12 11 1 Fast Attach 18 | . 6 . . . 1 8 . 3 . . Attach 36 | 6 3 . . . 4 8 1 3 6 5 Detach 3 | . . . . . . 2 . 1 . . Swap 36 | . . . . . 4 19 . 7 6 . Drop 50 | . 3 . . . 8 19 . 15 4 1 Fire 241 | . 19 . . . 21 147 . 16 29 9 Melee . | . . . . . . . . . . . Ram . | . . . . . . . . . . . Kick 1 | . . . . . . 1 . . . . Crush . | . . . . . . . . . . . Escape Stasis 2 | . . . . . . . . 2 . . Rewire 1 | . . . . . . . . 1 . . Trap . | . . . . . . . . . . . Miscellaneous . | . . . . . . . . . . . Route ------- -11/Scrapyard -10/Materials (discovered 5 exits: *Mat x3 / *Min x2) -10/Mines (discovered 3 exits: *Mat x2 / *Exi) -10/Exiles -9/Mines -8/Materials (discovered 4 exits: *Fac x2 / *Sto / Gar) -7/Factory (discovered 3 exits: *Fac x2 / *Low) -6/Factory -6/DSF -5/Factory (discovered 2 exits: *Upp / Gar) -5/Upper Caves History --------- Turn | Location | Event 5 | -11/Scrapyard | Identified exit to Materials 5 | -11/Scrapyard | Discovered exit to Materials (range 16) 92 | -11/Scrapyard | Entered Materials 92 | -10/Materials | Evolved 1 slot: Propulsion x1 305 | -10/Materials | Build established: Hacker-Mutant 310 | -10/Materials | Identified exit to Materials 310 | -10/Materials | Discovered exit to Materials (range 16) 367 | -10/Materials | Identified exit to Mines 367 | -10/Materials | Discovered exit to Mines (range 11) 484 | -10/Materials | Discovered exit to Materials (range 14) 661 | -10/Materials | Discovered exit to Mines (range 12) 977 | -10/Materials | Discovered exit to Materials (range 16) 1091 | -10/Materials | Entered Mines 1092 | -10/Mines | Learned location of Storage (-8) 1126 | -10/Mines | Discovered exit to Materials (range 14) 1525 | -10/Mines | Learned location of 1 exit from Materials 1525 | -10/Mines | Discovered exit to Materials (range 5) 1534 | -10/Mines | Assisted by bots powering up and referring to "LRC-V3" 1594 | -10/Mines | Deemed a non-threat by the Exiles lab entrance 1595 | -10/Mines | Identified exit to Exiles 1595 | -10/Mines | Discovered exit to Exiles (range 5) 1600 | -10/Mines | Entered Exiles 1600 | -10/Exiles | Accompanied by 2 allies 1629 | -10/Exiles | Met 8R-AWN 1651 | -10/Exiles | Met EX-HEX 1684 | -10/Exiles | Met EX-BIN 1699 | -10/Exiles | Aligned with FarCom system 1700 | -10/Exiles | Given EX-Vault access code 1730 | -10/Exiles | Opened EX-Vault 1738 | -10/Exiles | Found AWS/Thermal 1763 | -10/Exiles | Warned to stay clear of 0b10 Research branches 1799 | -10/Exiles | Met EX-DEC 1841 | -10/Exiles | Identified exit to Mines 1841 | -10/Exiles | Discovered exit to Mines (range 10) 1851 | -10/Exiles | Left Exiles lab with AWS/Thermal 1851 | -10/Exiles | Entered Mines 1851 | -9/Mines | Accompanied by 1 ally 1893 | -9/Mines | Identified exit to Materials 1893 | -9/Mines | Discovered exit to Materials (range 14) 1894 | -9/Mines | Assembled infested the area 1896 | -9/Mines | Met a Derelict bent on vengeance 1899 | -9/Mines | Assisted by a Guerilla fighting off Assembled 1913 | -9/Mines | Entered Materials 1913 | -8/Materials | Accompanied by 1 ally 1913 | -8/Materials | Evolved 4 slots: Power x1, Propulsion x1, Utility x2 1914 | -8/Materials | Identified exit to Factory 1984 | -8/Materials | Identified exit to Garrison 2161 | -8/Materials | Build established: Hacker-Skirmisher 3433 | -8/Materials | Identified exit to Storage 3433 | -8/Materials | Discovered exit to Storage (range 15) 3546 | -8/Materials | Repaired EM Pulse Gun+ 3562 | -8/Materials | Discovered exit to Factory (range 15) 3720 | -8/Materials | Entered Factory 3720 | -7/Factory | Evolved 2 slots: Utility x2 4691 | -7/Factory | Garrison activated, responded to threat 4833 | -7/Factory | Build established: Hacker-Mutant 4914 | -7/Factory | Identified exit to Factory 4914 | -7/Factory | Discovered exit to Factory (range 15) 5459 | -7/Factory | Fabricated Imp. Carbon-fiber Leg (x2) 5609 | -7/Factory | Identified exit to Lower Caves 5609 | -7/Factory | Discovered exit to Lower Caves (range 17) 5631 | -7/Factory | Garrison activated, responded to threat 6117 | -7/Factory | Garrison activated, responded to threat 6182 | -7/Factory | Lost 3 parts (2p1u) 6598 | -7/Factory | Discovered exit to Factory (range 9) 6754 | -7/Factory | Repaired Gauss Rifle+ 7594 | -7/Factory | Repaired Mic. Nuclear Core 7622 | -7/Factory | Entered another Factory area 7622 | -6/Factory | Evolved 2 slots: Utility x2 7626 | -6/Factory | Identified exit to DSF 7627 | -6/Factory | Entered DSF 7681 | -6/DSF | Identified exit to Factory 7681 | -6/DSF | Discovered exit to Factory (range 14) 7695 | -6/DSF | Additional patrols routed to DSF 7916 | -6/DSF | Entered Factory 7916 | -5/Factory | Evolved 2 slots: Propulsion x2 8050 | -5/Factory | Build established: Wizard-Mutant 8150 | -5/Factory | Fabricated Impulse Thruster (x2) 8236 | -5/Factory | Fabricated Imp. Deuterium Engine (x2) 8297 | -5/Factory | Repaired Disruptor Cannon 8467 | -5/Factory | Identified exit to Garrison 8968 | -5/Factory | Core integrity fell below 50% 9087 | -5/Factory | Identified exit to Upper Caves 9087 | -5/Factory | Discovered exit to Upper Caves (range 5) 9093 | -5/Factory | Entered Upper Caves 9114 | -5/Upper Caves | Attracted the attention of an 0b10 base 9155 | -5/Upper Caves | Core integrity fell below 20% 9246 | -5/Upper Caves | Lost 11 parts (2p1n4u4w) 9267 | -5/Upper Caves | Learned Extension stockpile data 9267 | -5/Upper Caves | Learned Extension garrison access intel 9302 | -5/Upper Caves | Lost 3 parts (2p1u) 9492 | -5/Upper Caves | Destroyed by G-67 Veteran with Plasma Rifle Last Messages --------------- G-50 Soldier misfires. Imp. Hacking Suite destroyed. Connecting with Outpost Terminal... >>Query(Status Report 192H) RETRIEVED SUPPLY CACHE. >>Query(Status Report 419P) PATROL 7C FAILED TO REPORT. REQUESTING REINFORCEMENTS. >>Query(Status Report 410X) INTERCEPTED DERELICT INTEL. Data stored: Extension stockpile data. >>Query(Status Report 858X) INTERCEPTED DERELICT INTEL. Data stored: Extension garrison access intel. Lgt. Nuclear Core destroyed. G4-H7V(k) breaks down the debris. G-67 Veteran: "INCOMING HOSTILES. DEFEND SHIPMENT RENDEZVOUS PERIMETER." System corrupted: IFF burst signal emitted. Broken Visual Processing Unit destroyed. Map ----- +----------------------------------------------------+ | ?????????????????????????????????????????????????? | | ?????????????????????????????????????????????????? | | ??????????????????????????????????????????###????? | | ?????????????????????????????????????###??# ##???? | | ????????????????????????????????????## ##?# ##### | | ????????????????????????????????????# ### | | ???????????????????????????????????## ###### | | ?????????????????????????????????### #????? | | ????????????????????????????????## ##????? | | ????????????????????????????????# ##?????? | | ????????????????????????? ?????# ##?????? | | ????????????????????????? ????## #?????? | | ???????????????????????## ???## ##?????? | | ??????????????????????? %##?# ###??????? | | ???????????????????????# %%#?# ###????????? | | ???????????????????????#% #?## ### ##??????????# | | ???????????????????????# % ##?##??# #???????????? | | ??????????????????????? %#?????# #???????????? | | ??????????????????????? % #?????# #?????????? | | ???????????????????????# #?##### #????????? | | ???????????????????????# % #?# #????? #?? | | ???????????????????????# ### ####???? ##???? | | ???????????????????????# ## #????## ##??? | | ?????????????????????### ## #??? #??? | | ????????????????????## #?# ### #?? | | ????????????????????# @ #???# ?? | | ???????????????????## k ##???# ?? | | ?????????????????### ###### #???? | | ???????????# ## ## ##???? | | ???????????# % ##?? #????? | | ???????????## ##???? #????? | | ????????????## ! ####?????? ???? | | ?????????????# % ## ##?????????? ????? | | ?????????????##ggg ?# #???????????? ?????? | | ?????????????# ? #??????????????????? | | ????????????#! g ## #??????????????????? | | ???????????!%! g ?# ####??????????????????? | | ??????????? ! ? ##?????????????????????? | | ????????????# ? ###??????????????????????? | | ???????????? ?? ##?????????????????????????? | | ???????????????? ???????????????????????????? | | ???????????????? #???????????????????????????? | | ????????????????? #????????????????????????????? | | ??????????????????? ?????????????????????????????? | | ?????????????????????????????????????????????????? | | ?????????????????????????????????????????????????? | | ?????????????????????????????????????????????????? | | ?????????????????????????????????????????????????? | | ?????????????????????????????????????????????????? | | ?????????????????????????????????????????????????? | +----------------------------------------------------+ Best States ------------- Heat Dissipation 40 Energy Generation 33 Energy Capacity 530 Matter Stores 300 Matter Capacity 300 Sight Range 18 Robot Scan Range 14 Terrain Scan Range 14 Terrain Scan Density 10 Jamming Range 14 Base Temperature (-) 100 Resistance: KI 35 Resistance: TH 35 Resistance: EX 35 Resistance: EM 35 Resistance: I 35 Resistance: S 35 Resistance: P 35 Evasion (%) 58 Target Analysis 6 Offensive Hacking 56 Defensive Hacking 24 Item Schematics ----------------- Assault Rifle | -10/Materials | Hacked Datajack | -10/Materials | Hacked Seismic Detector | -10/Materials | Hacked Sensor Array | -10/Materials | Hacked Signal Interpreter | -10/Materials | Hacked Structural Scanner | -10/Materials | Hacked ECM Suite | -10/Materials | Hacked EM Pulse Gun | -10/Materials | Hacked Welding Torch | -10/Materials | Hacked Adv. Weight Redist. System | -8/Materials | Hacked Hacking Suite | -8/Materials | Hacked System Shield | -8/Materials | Hacked Shotgun | -8/Materials | Hacked Katana | -8/Materials | Hacked Carbon-fiber Leg | -8/Materials | Hacked Cryofiber Web | -8/Materials | Hacked Terrain Scanner | -8/Materials | Hacked Terrain Scan Processor | -8/Materials | Hacked Titanium Leg | -8/Materials | Hacked Reaction Control System | -8/Materials | Hacked Trap Scanner | -8/Materials | Hacked Visual Processing Unit | -8/Materials | Hacked Beam Cannon | -8/Materials | Hacked Imp. Carbon-fiber Leg | -7/Factory | Hacked Imp. Deuterium Engine | -7/Factory | Hacked Arc Projector | -7/Factory | Scanalyzed Imp. Grenade Launcher | -7/Factory | Scanalyzed Remote Datajack | -7/Factory | Hacked Particle Cannon | -7/Factory | Hacked Gauss Rifle | -7/Factory | Hacked Adv. ECM Suite | -7/Factory | Hacked Rnf. Deuterium Engine | -7/Factory | Hacked Imp. Titanium Leg | -7/Factory | Hacked Flexi-carbon Leg | -7/Factory | Hacked Transmission Jammer | -7/Factory | Hacked Robot Schematics ------------------ None Fabricated ------------ Imp. Carbon-fiber Leg | x2 | -7/Factory Impulse Thruster | x2 | -5/Factory | Preloaded Imp. Deuterium Engine | x2 | -5/Factory Repaired ---------- EM Pulse Gun | 17% | -8/Materials Gauss Rifle | 10% | -7/Factory Mic. Nuclear Core | 14% | -7/Factory Disruptor Cannon | 36% | -5/Factory Studied --------- EM Pulse Gun | -8/Materials | Hacked Particle Gun | -8/Materials | Hacked Shock Rifle | -8/Materials | Hacked Carbon-fiber Leg | -8/Materials | Hacked Arc Projector | -7/Factory | Hacked Imp. Deuterium Engine | -7/Factory | Hacked VSS Leg | -7/Factory | Hacked Imp. Grenade Launcher | -7/Factory | Hacked Datajack | -7/Factory | Hacked Lgt. Ion Engine | -7/Factory | Hacked Imp. Carbon-fiber Leg | -7/Factory | Hacked Remote Datajack | -7/Factory | Hacked Missile Launcher | -7/Factory | Hacked Gauss Rifle | -7/Factory | Hacked Alien Tech Used ----------------- None Achievements -------------- Drive-By Ew, Corruption Maybe Next Time I'll Detach My Launcher Window Shopping Challenges ------------ None Game ------ Seed LatentScrapCompressor Manual? 0 Play Time 01:55:14 Cumulative 40.8 hours Start 2026.02.24 @ 08:54:45 End 2026.03.10 @ 14:54:30 Sessions 3 Manual Loads 0 Difficulty Explorer Special Mode None Game No. 59 Rogue 1 Adventurer 3 Explorer 55 Win Type - Total 0 Types 0/0/0/0/0/0/0/0/0/0 Lore% 18 Gallery% 18 Achievement% 17 Wizard Run 0 Options --------- Layout 1 ASCII 0 Keyboard 0 Movement Mouse Keybinds 0 Fullscreen 1 Font 32/SmallcapsGlow Map View 50x35 Zoom Use 0% Tactical HUD 0 Map Filters NONE Filters NONE Steam 1 RUN: 4f46fc8c-4405-4b9b-a6f3-d36cc2cd6c2e